Workbook

Sheet Титул
B1: Министерство науки и высшего образования Российской Федерации
B2: Федеральное государственное учреждение
B3: "Федеральный исследовательский центр Институт прикладной математики им. М.В. Келдыша
B4: Российской академии наук"
B5: (ИПМ им. М.В. Келдыша РАН)
B6: Аспирантура
B8: План одобрен Ученым советом ИПМ им. М.В. Келдыша РАН
B9: Протокол № 11/23 "26" октября 2023г.
B12: РАБОЧИЙ УЧЕБНЫЙ ПЛАН подготовки аспирантов
B13: подготовки аспирантов
B15: по научной специальности - | G15: 1.2.2 Математическое моделирование, численные методы и комплексы программ
B17: Отдел | D17: Научно-образовательный отдел
B18: Виды деятельности выпускников: | D18: научно-исследовательская деятельность в области фундаментальной и прикладной математики, механики,
D19: естественных наук; преподавательская деятельность в области математики, механики, информатики.
B21: Форма обучения: очная
B22: Срок обучения: 3 года | I22: План разработан в соответствии с Приказом Минобрнауки РФ от 20.10.2021 N 951 "Об утверждении федеральных государственных требований к структуре программ подготовки научных и научнопедагогических кадров в аспирантуре (адъюнктуре), условиям их реализации, срокам освоения этих программ с учетом различных форм обучения, образовательных технологий и особенностей отдельных категорий аспирантов (адъюнктов)"

Sheet Календарный график на 25-26
A2: 1. Календарный учебный график на 2025/26 уч. год
A4: Мес | B4: Сентябрь | F4: 29 - 5 | G4: Октябрь | J4: 27 - 2 | K4: Ноябрь | O4: Декабрь | S4: 29 - 4 | T4: Январь | W4: 26 - 1 | X4: Февраль | AA4: 23 - 1 | AB4: Март | AF4: 30 - 5 | AG4: Апрель | AJ4: 27 - 3 | AK4: Май | AO4: Июнь | AS4: 29 - 5 | AT4: Июль | AW4: 27 -2 | AX4: Август
B5: 1 - 7 | C5: 8 - 14 | D5: 15 - 21 | E5: 22 - 28 | G5: 6 - 12 | H5: 13 - 19 | I5: 20 - 26 | K5: 3 - 9 | L5: 10 - 16 | M5: 17 - 23 | N5: 24 - 30 | O5: 1 - 7 | P5: 8 - 14 | Q5: 15 - 21 | R5: 22 - 28 | T5: 5 - 11 | U5: 12 - 18 | V5: 19 - 25 | X5: 2 - 8 | Y5: 9 - 15 | Z5: 16 - 22 | AB5: 2 - 8 | AC5: 9 - 15 | AD5: 16 - 22 | AE5: 23 - 29 | AG5: 6 - 12 | AH5: 13 - 19 | AI5: 20 - 26 | AK5: 4 - 10 | AL5: 11 - 17 | AM5: 18 - 24 | AN5: 25 - 31 | AO5: 1 - 7 | AP5: 8 - 14 | AQ5: 15 - 21 | AR5: 22 - 28 | AT5: 6 - 12 | AU5: 13 - 19 | AV5: 20 - 26 | AX5: 3 - 9 | AY5: 10 - 16 | AZ5: 17 - 23 | BA5: 24 - 31
B6: 1 | C6: 2 | D6: 3 | E6: 4 | F6: 5 | G6: 6 | H6: 7 | I6: 8 | J6: 9 | K6: 10 | L6: 11 | M6: 12 | N6: 13 | O6: 14 | P6: 15 | Q6: 16 | R6: 17 | S6: 18 | T6: 19 | U6: 20 | V6: 21 | W6: 22 | X6: 23 | Y6: 24 | Z6: 25 | AA6: 26 | AB6: 27 | AC6: 28 | AD6: 29 | AE6: 30 | AF6: 31 | AG6: 32 | AH6: 33 | AI6: 34 | AJ6: 35 | AK6: 36 | AL6: 37 | AM6: 38 | AN6: 39 | AO6: 40 | AP6: 41 | AQ6: 42 | AR6: 43 | AS6: 44 | AT6: 45 | AU6: 46 | AV6: 47 | AW6: 48 | AX6: 49 | AY6: 50 | AZ6: 51 | BA6: 52
A7: I | B7: Н | C7: Н | D7: Н | E7: Н | Q7: па | R7: па | T7: К | U7: нир | V7: Н | W7: Н | AH7: кэ ан | AM7: па | AN7: па | AR7: кэ ф | AS7: нир | AT7: нир | AU7: К | AV7: К | AW7: К | AX7: К | AY7: К | AZ7: К | BA7: К
S11: К
A14: II | B14: Н | C14: Н | D14: Н | E14: Н | Q14: па | R14: па | T14: К | U14: нир | V14: кэ сп | W14: кэ сп | X14: Н | Y14: Н | AB14: п | AC14: п | AD14: п | AE14: п | AF14: п | AG14: п | AH14: п | AI14: п | AM14: па /кэ сп | AN14: кэ сп | AS14: нир | AT14: нир | AU14: К | AV14: К | AW14: К | AX14: К | AY14: К | AZ14: К | BA14: К
S18: К
A21: III | B21: Н | C21: Н | D21: Н | E21: Н | T21: К | U21: нир | V21: кэ сп | W21: кэ сп | X21: Н | Y21: Н | Z21: Н | AA21: Н | AB21: Н | AC21: Н | AD21: Н | AE21: Н | AF21: Н | AG21: Н | AH21: Н | AI21: Н | AJ21: Н | AK21: Н | AL21: Н | AM21: кэ сп | AN21: кэ сп | AO21: ИА | AP21: ИА | AQ21: ИА | AR21: ИА | AS21: ИА | AT21: ИА | AU21: ИА | AV21: ИА | AW21: К | AX21: К | AY21: К | AZ21: К | BA21: К
S25: К
V28: 1 | W28: 2 | X28: 3 | Y28: 4 | Z28: 5 | AA28: 6 | AB28: 7 | AC28: 8 | AD28: 9 | AE28: 10 | AF28: 11 | AG28: 12 | AH28: 13 | AI28: 14 | AJ28: 15 | AK28: 16 | AL28: 17 | AM28: 18 | AN28: 19 | AO28: 20
A29: 2. Сводные данные
W30: Курс 1 | AC30: Курс 2 | AI30: Курс 3 | AO30: Итого
W31: сем. 1 | Y31: сем. 2 | AA31: Всего | AC31: сем. 3 | AE31: сем. 4 | AG31: Всего | AI31: сем. 5 | AK31: сем. 6 | AM31: Всего
B32: Образовательная подготовка (рассред.) в т.ч. практика | W32: 6 | Y32: 6 | AA32: =W32+Y32 -> 12 | AC32: 4 | AE32: 2 | AG32: =AC32+AE32 -> 6 | AI32: 2 | AK32: 0 | AM32: =AI32+AK32 -> 2 | AO32: =AM32+AG32+AA32 -> 20
A33: п | B33: Практика (рассред.) | AE33: 2 | AG33: =AC33+AE33 -> 2 | AO33: =AA33+AG33+AN33 -> 2
A34: Н | B34: Научные исследования | W34: 4 | Y34: 4 | AA34: =SUM(W34:Z34) -> 8 | AC34: 4 | AE34: 4 | AG34: =SUM(AC34:AF34) -> 8 | AI34: 4 | AK34: 19 | AM34: =SUM(AI34:AL34) -> 23 | AO34: =AM34+AG34+AA34 -> 39
B35: Научные исследования (рассред.) | W35: 7 | Y35: 13 | AA35: =SUM(W35:Z35) -> 20 | AC35: 9 | AE35: 17 | AG35: =SUM(AC35:AF35) -> 26 | AI35: 11 | AM35: =SUM(AI35:AL35) -> 11 | AO35: =AM35+AG35+AA35 -> 57
A36: па,кэ, нир | B36: Промежуточная аттестация по уч.дисциплинам (зачет/экзамен), КЭ,аттестация по нир | W36: 2 | Y36: 2 | AA36: =SUM(W36:Z36) -> 4 | AC36: 2 | AE36: 2 | AG36: =SUM(AC36:AF36) -> 4 | AI36: 2 | AK36: 1 | AM36: =SUM(AI36:AL36) -> 3 | AO36: =AM36+AG36+AA36 -> 11
A37: ИА | B37: Итоговая аттестация | AK37: 5 | AM37: =SUM(AI37:AL37) -> 5 | AO37: =AM37+AG37+AA37 -> 5
A38: К | B38: Каникулы | W38: 1 | Y38: 7 | AA38: =SUM(W38:Z38) -> 8 | AC38: 1 | AE38: 7 | AG38: =SUM(AC38:AF38) -> 8 | AI38: 1 | AK38: 7 | AM38: =SUM(AI38:AL38) -> 8 | AO38: =AM38+AG38+AA38 -> 24
W40: =SUM(W32:X39) -> 20 | Y40: =SUM(Y32:Z39) -> 32 | AA40: =SUM(AA32:AB39) -> 52 | AC40: =SUM(AC32:AD39) -> 20 | AE40: =AE32+SUM(AE34:AF39) -> 32 | AG40: =SUM(AC40:AE40) -> 52 | AI40: =SUM(AI32:AJ39) -> 20 | AK40: =SUM(AK32:AL38) -> 32 | AM40: =SUM(AI40:AL40) -> 52 | AO40: =SUM(AO34:AP39)+AO32 -> 156

Sheet ПланСвод
C1: Наименование | D1: Формы контроля | J1: Всего часов | R1: Распределение ЗЕ
J2: По ЗЕТ | K2: По плану | L2: в том числе | R2: Курс 1 | W2: Курс 2 | AB2: Курс 3
D3: Экзамены | E3: Зачеты | F3: Зачеты с оценкой | G3: Рефераты | H3: Эссе | I3: РГР | L3: Контакт. раб. (по учеб. зан.) | M3: из них | O3: СРС | P3: Контроль | Q3: З.Е факт. | R3: Итого | S3: Сем. 1 | T3: в часах | U3: Сем. 2 | V3: в часах | W3: Итого | X3: Сем. 3 | Y3: в часах | Z3: Сем. 4 | AA3: в часах | AB3: Итого | AC3: Сем. 5 | AD3: в часах | AE3: Сем. 6 | AF3: в часах
M4: Лек | N4: Сем
C6: Итого | J6: =J7+J23+J26 -> 6480 | K6: =K7+K23+K26 -> 6480 | Q6: =R6+W6+AB6 -> 180 | R6: =S6+U6 -> 60 | S6: =S7+S23 -> 25.5 | T6: =T7+T23 -> 918.0 | U6: =U7+U23 -> 34.5 | V6: =V7+V23 -> 1242.0 | W6: =X6+Z6 -> 60 | X6: =X7+X23 -> 25.0 | Y6: =Y7+Y23 -> 900.0 | Z6: =Z7+Z23 -> 35.0 | AA6: =AA7+AA23 -> 1260.0 | AB6: =AC6+AE6 -> 60 | AC6: =AC7+AC23 -> 25.5 | AD6: =AD7+AD23 -> 918.0 | AE6: =AE7+AE23+AE26 -> 34.5 | AF6: =AF7+AF23 -> 1062.0
A7: 1 | C7: Образовательный компонент | J7: =Q7*36 -> 1080 | K7: =L7+O7+P7 -> 1080 | L7: =L8+L11+L16 -> 192 | O7: =O8+O11+O16+O22 -> 768 | P7: =P8+P11+P16 -> 120 | Q7: =R7+W7+AB7 -> 30 | R7: =S7+U7 -> 18 | S7: =S8+S11+S16+S22 -> 6 | T7: =S7*36 -> 216.0 | U7: =U8+U11+U16+U22 -> 12 | V7: =U7*36 -> 432 | W7: =W8+W11+W16+W22 -> 12 | X7: =X8+X11+X16+X22 -> 6 | Y7: =X7*36 -> 216 | Z7: =Z8+Z11+Z16+Z22 -> 6 | AA7: =Z7*36 -> 216 | AB7: =AB8+AB11+AB16+AB22 -> 0 | AC7: =AC8+AC11+AC16+AC22 -> 0 | AE7: =AE8+AE11+AE16+AE22 -> 0
A8: 1.1. | C8: Дисциплины (базовая часть) | J8: =Q8*36 -> 324 | K8: =P8+O8+L8 -> 324 | L8: =SUM(L9:L10) -> 56 | M8: =SUM(M9:M10) -> 10 | N8: =SUM(N9:N10) -> 46 | O8: =SUM(O9:O10) -> 232 | P8: =SUM(P9:P10) -> 36 | Q8: =R8+W8+AB8 -> 9 | R8: =S8+U8 -> 9 | S8: =S10+S9 -> 2 | U8: =U10+U9 -> 7 | W8: =X8+Z8 -> 0 | AB8: =AC8+AE8 -> 0
C9: Иностранный язык (кандидатский экзамен) | D9: 2 | J9: =Q9*36 -> 180 | K9: =L9+O9+P9 -> 180 | L9: =M9+N9 -> 40 | M9: 4 | N9: 36 | O9: =180-P9-L9 -> 140 | Q9: =R9+W9+AB9 -> 5 | R9: 5 | S9: 2 | U9: 3
A10: 1.1.2 | B10: 1 | C10: История и философия науки (кандидатский экзамен) | D10: 2 | G10: + | J10: =Q10*36 -> 144 | K10: =L10+O10+P10 -> 144 | L10: 16 | M10: 6 | N10: 10 | O10: 92 | P10: 36 | Q10: =R10+W10+AB10 -> 4 | R10: 4 | U10: 4
A11: 1.2 | B11: 1 | C11: ДИСЦИПЛИНЫ (общие) | E11: 3 | F11: 1 | J11: =Q11*36 -> 180 | K11: =L11+O11+P11 -> 180 | L11: =SUM(L12:L15) -> 62 | M11: 16 | N11: 34 | O11: =SUM(O12:O15) -> 106 | P11: =SUM(P12:P15) -> 12 | Q11: =SUM(Q12:Q15) -> 5 | R11: =SUM(S11+U11) -> 3 | S11: 2 | U11: 1 | W11: =X11+Z11 -> 2 | X11: =SUM(X12:X15) -> 2 | Z11: =SUM(Z12:Z15) -> 0 | AB11: =AC11+AE11 -> 0 | AC11: =SUM(AC12:AC15) -> 0
B12: 1 | C12: Методология научных исследований | E12: 1 | J12: 72 | K12: =L12+O12 -> 72 | L12: 14 | M12: 4 | N12: 10 | O12: 58 | Q12: =R12+W12+AB12 -> 2 | R12: =SUM(S12+U12) -> 2 | S12: 2 | W12: 0 | AB12: 0
B13: 1 | C13: Методика написания и правила оформления научной работы | E13: 2 | J13: 36 | K13: =L13+O13 -> 36 | L13: 12 | M13: 4 | N13: 8 | O13: 24 | Q13: =R13+W13+AB13 -> 1 | R13: =SUM(S13+U13) -> 1 | U13: 1 | W13: 0 | AB13: 0
B14: 1 | C14: Психология и педагогика профессиональной деятельности | F14: 3 | J14: 36 | K14: =L14+O14 -> 36 | L14: 12 | M14: 4 | N14: 8 | O14: 24 | Q14: =R14+W14+AB14 -> 1 | R14: =SUM(S14+U14) -> 0 | W14: 1 | X14: 1 | AB14: 0
B15: 1 | C15: Искусственный интеллект в научных исследованиях. | E15: 3 | J15: 36 | K15: =L15+O15+P15 -> 36 | L15: 24 | P15: 12 | Q15: =R15+W15+AB15 -> 1 | R15: =SUM(S15+U15) -> 0 | W15: 1 | X15: 1 | AB15: 0
A16: 1.3 | B16: 1 | C16: ДИСЦИПЛИНЫ специальности: Математическое моделирование, численные методы и комплексы программ | D16: 2 | E16: 3 | J16: =Q16*36 -> 468 | K16: =SUM(K17:K21) -> 468 | L16: =L17+L18+L19+L20+L21 -> 74 | M16: =SUM(M17:M21) -> 22 | N16: =SUM(N17:N21) -> 40 | O16: =O17+O18+O19+O20+O21 -> 322 | P16: =SUM(P17:P21) -> 72 | Q16: =R16+W16+AB16 -> 13 | R16: =S16+U16 -> 6 | S16: =SUM(S17:S21) -> 2 | U16: =SUM(U17:U21) -> 4 | W16: 7 | X16: =SUM(X17:X21) -> 4 | Z16: =SUM(Z17:Z21) -> 3 | AB16: 0 | AC16: =SUM(AC17:AC21) -> 0 | AE16: =SUM(AE17:AE21) -> 0 | AF16: =SUM(AF17:AF21) -> 0
B17: 1 | C17: Элементы теории функций и функционального анализа | E17: 1 | J17: 72 | K17: =L17+O17 -> 72 | L17: =M17+N17 -> 14 | M17: 4 | N17: 10 | O17: 58 | Q17: =R17+W17+AB17 -> 2 | R17: =SUM(S17:U17) -> 2 | S17: 2
B18: 1 | C18: Методы ИИ | E18: 2 | J18: 72 | K18: =L18+O18 -> 72 | L18: =M18+N18 -> 18 | M18: 18 | N18: 0 | O18: 54 | Q18: 2 | R18: =SUM(S18:U18) -> 2 | U18: 2
B19: 1 | C19: Методы исследования математических моделей | D19: 2 | J19: 72 | K19: =L19+O19+P19 -> 72 | L19: =M19+N19 -> 14 | M19: 4 | N19: 10 | O19: 22 | P19: 36 | Q19: 2 | R19: =SUM(S19:U19) -> 2 | U19: 2
C20: Численные методы | E20: 4 | J20: =Q20*36 -> 108 | K20: =L20+O20 -> 108 | L20: =M20+N20 -> 14 | M20: 4 | N20: 10 | O20: 94 | Q20: =R20+W20+AB20 -> 3 | W20: =X20+Z20 -> 3 | X20: 0 | Z20: 3 | AC20: 0
B21: 1 | C21: Вычислительный эксперимент | D21: 3 | J21: 144 | K21: 144 | L21: =M21+N21 -> 14 | M21: 4 | N21: 10 | O21: 94 | P21: 36 | Q21: 4 | W21: =SUM(X21:Z21) -> 4 | X21: 4
A22: 1.4 | B22: 1 | C22: Практика | F22: 4 | J22: =Q22*36 -> 108 | K22: 108 | O22: 108 | Q22: 3 | W22: =X22+Z22 -> 3 | Z22: 3
A23: 2 | C23: Научный коммпонент | J23: =Q23*36 -> 5220 | K23: =K24+K25 -> 5220 | L23: =50*3 -> 150 | O23: =K23-L23 -> 5070 | Q23: =R23+W23+AB23 -> 145.0 | R23: =S23+U23 -> 42.0 | S23: =SUM(S24:S25) -> 19.5 | T23: =S23*36 -> 702.0 | U23: =SUM(U24:U25) -> 22.5 | V23: =U23*36 -> 810.0 | W23: =X23+Z23 -> 48.0 | X23: =SUM(X24:X25) -> 19.0 | Y23: =X23*36 -> 684 | Z23: =SUM(Z24:Z25) -> 29.0 | AA23: =Z23*36 -> 1044.0 | AB23: =AC23+AE23 -> 55.0 | AC23: =SUM(AC24:AC25) -> 25.5 | AD23: =AC23*36 -> 918.0 | AE23: =SUM(AE24:AE25) -> 29.5 | AF23: =AE23*36 -> 1062.0
A24: 2.1 | B24: 1 | C24: Научно-исследовательская работа аспиранта, направленная на подготовку диссертациии на соискание ученой степени кандидата наук к защите | F24: 1-6 | J24: =Q24*36 -> 4860 | K24: =Q24*36 -> 4860 | L24: =L23 -> 150 | O24: =Q24*36-L24 -> 4710 | Q24: 135.0 | R24: =S24+U24 -> 39.0 | S24: 18.5 | U24: 20.5 | W24: =X24+Z24 -> 44.0 | X24: 17.0 | Z24: 27.0 | AB24: =AC24+AE24 -> 52.0 | AC24: 23.5 | AE24: 28.5
A25: 2.2 | B25: 1 | C25: Подготовка публикаций и (или) заявок на патенты на изобретения | F25: 2-6 | J25: =Q25*36 -> 360 | K25: =Q25*36 -> 360 | O25: =Q25*36 -> 360 | Q25: 10.0 | R25: =S25+U25 -> 3.0 | S25: 1.0 | U25: 2.0 | W25: =X25+Z25 -> 4.0 | X25: 2.0 | Z25: 2.0 | AB25: =AC25+AE25 -> 3.0 | AC25: 2.0 | AE25: 1.0
A26: 3 | B26: 1 | C26: Итоговая аттестация | E26: 6 | J26: =Q26*36 -> 180 | K26: =Q26*36 -> 180 | O26: =Q26*36 -> 180 | Q26: 5 | AB26: 5.0 | AE26: 5.0

Sheet План
B1: Наименование | E1: Формы контроля | I1: Всего часов | R1: Распределение по курсам и семестрам
I2: По ЗЕТ | J2: По плану | K2: в том числе | Q2: з.е. факт. | R2: Курс 1 | AE2: Курс 2 | AU2: Курс 3
E3: Экзамены | F3: Зачеты | G3: Зачеты с оценкой | H3: Рефераты | K3: Контакт. раб. (по учеб. зан.) | L3: из них | O3: СРС | P3: Контроль | R3: Всего | U3: Семестр 1 [12 нед] | Z3: Семестр 2 [21 нед] | AE3: Всего | AH3: Всего | AK3: Семестр 3 [8 нед] | AP3: Семестр 4 [23 нед] | AU3: Всего | AX3: Всего | BA3: Семестр 5 [15 нед] | BE3: Семестр 6 [23 нед]
L4: Лек | M4: Пр | N4: Сем | U4: Лек | V4: Сем | W4: СРС | X4: Контроль | Y4: ЗЕТ | Z4: Лек | AA4: Сем | AB4: СРС | AC4: Контроль | AD4: ЗЕТ | AK4: Лек | AL4: Сем | AM4: СРС | AN4: Контроль | AO4: ЗЕТ | AP4: Лек | AQ4: Сем | AR4: СРС | AS4: Контроль | AT4: ЗЕТ | BA4: Лек | BB4: Сем | BC4: СРС | BD4: ЗЕТ | BE4: Лек | BF4: Сем | BG4: СРС | BH4: ЗЕТ
R5: Часов | S5: Ауд | T5: ЗЕТ | AE5: Часов | AF5: Ауд | AG5: ЗЕТ | AH5: Часов | AI5: Ауд | AJ5: ЗЕТ | AU5: Часов | AV5: Ауд | AW5: ЗЕТ | AX5: Часов | AY5: Ауд | AZ5: ЗЕТ
B7: Итого на подготовку аспиранта | E7: =E8 -> 5 | F7: 7 | G7: =G8+G27+G25 -> 8 | I7: =Q7*36 -> 6480 | J7: =J8+J27+J30 -> 6480 | K7: =K8+K27+K30 -> 396 | L7: 50 | N7: 110 | O7: =O8+O27+O30 -> 5964 | P7: =P8+P25+P27+P30 -> 120 | Q7: =Q8+Q27+Q30 -> 180 | R7: =U7+V7+W7+X7+Z7+AA7+AB7+AC7+50 -> 1,960 | S7: =U7+V7+Z7+AA7 -> 0 | T7: =Y7+AD7 -> 60.0 | W7: =W8+W27+W30 -> 850 | X7: =X8+X27+X30 -> 0 | Y7: =Y8+Y27+Y30 -> 25.5 | AB7: =AB8+AB27+AB30 -> 1060 | AD7: =AD8+AD27+AD30 -> 34.5 | AE7: 2160.00 | AF7: 26.00 | AG7: 60 | AH7: =AJ7*36 -> 2,160 | AJ7: =AO7+AT7 -> 60.0 | AM7: =AM8+AM27 -> 782 | AO7: =AO8+AO25+AO27 -> 25.0 | AR7: =AR8+AR12+AR17+AR25+AR27 -> 1382 | AT7: =AT8+AT27 -> 35.0 | AU7: 2160.00 | AV7: 26.00 | AW7: 60 | AX7: =AX8+AX27+AX30 -> 2160 | AZ7: =BD7+BH7 -> 60.0 | BC7: =BC27 -> 898 | BD7: =BD8+BD25+BD27 -> 25.5 | BG7: =BG27 -> 1032 | BH7: =BH8+BH27+BH30 -> 34.5
A8: 1 | B8: Образовательный компонент | E8: =E9+E12+E17 -> 5 | F8: =F9+F12+F17 -> 6 | G8: =G9+G12+G17+G25 -> 1 | I8: 1080 | J8: =J9+J12+J17+J25 -> 1080 | K8: =K9+K12+K17+K25 -> 210 | L8: =L9+L12+L17+L26 -> 44 | M8: =M9+M12+M17+M26 -> 0 | N8: =N9+N12+N17+N26 -> 110 | O8: =O9+O12+O17+O25 -> 750 | P8: =P9+P12+P17 -> 120 | Q8: =Q9+Q12+Q17+Q25 -> 30 | R8: =R9+R12+R17+R25 -> 648 | S8: 102 | T8: =Y8+AD8 -> 18 | U8: =U9+U12+U17 -> 10 | V8: =V9+V12+V17 -> 38 | W8: =W9+W12+W17 -> 168 | X8: =X9+X12+X17 -> 0 | Y8: =Y9+Y12+Y17+Y25 -> 6.0 | Z8: =Z9+Z12+Z17+Z25 -> 32 | AA8: =AA9+AA12+AA17+AA25 -> 48 | AB8: =AB9+AB12+AB17+AB25 -> 280 | AC8: =AC9+AC12+AC17+AC25 -> 72 | AD8: =AD9+AD12+AD17 -> 12 | AE8: 216 | AF8: 26 | AG8: 6 | AH8: =AH9+AH12+AH17+AH25 -> 432 | AI8: =AI9+AI12+AI17 -> 64 | AJ8: =AJ9+AJ12+AJ17+AJ26 -> 12 | AK8: 32 | AL8: 18 | AM8: 118 | AN8: 48 | AO8: 6 | AP8: =AP9+AP12+AP17 -> 4 | AQ8: =AQ9+AQ12+AQ17 -> 10 | AR8: =AR9+AR12+AR17+AR25 -> 184 | AT8: =AT9+AT12+AT17+AT25 -> 6 | AU8: 216 | AV8: 26 | AW8: 6 | BD8: =BD9+BD12+BD17 -> 0
A9: 1.1 | B9: Дисциплины/модули (Базовая часть) | E9: 2 | I9: 324 | J9: =SUM(J10:J11) -> 324 | K9: =SUM(K10:K11) -> 56 | L9: 8 | N9: 28 | O9: =O10+O11 -> 232 | P9: =SUM(P10:P11) -> 36 | Q9: 9 | R9: =SUM(R10:R11) -> 324 | S9: 36 | T9: =Y9+AD9 -> 9 | U9: =U10+U11 -> 2 | V9: 18 | W9: 52 | X9: 0 | Y9: 2 | Z9: 6 | AA9: 30 | AB9: 180 | AC9: 36 | AD9: 7 | AO9: =SUM(AO10:AO11) -> 0 | AT9: =AT10+AT11 -> 0 | BD9: =SUM(BD10:BD11) -> 0
A10: 1.1.1 | B10: Иностранный язык | E10: 1 | I10: 180 | J10: =SUM(K10:P10) -> 180 | K10: =S10 -> 40 | L10: 2 | N10: 18 | O10: =W10+AB10 -> 140 | Q10: 5 | R10: 180 | S10: =U10+V10+Z10+AA10 -> 40 | T10: 5 | U10: 2 | V10: 18 | W10: 52 | X10: 0 | Y10: 2 | AA10: 20 | AB10: 88 | AD10: 3
A11: 1.1.2 | B11: История и философия науки | E11: 2 | H11: + | I11: 144 | J11: =SUM(K11:P11) -> 144 | K11: =S11+AI11+AY11 -> 16 | L11: 6 | N11: 10 | O11: =W11+AB11 -> 92 | P11: =X11+AC11 -> 36 | Q11: 4 | R11: 144 | S11: 16 | T11: 4 | U11: 0 | Z11: 6 | AA11: 10 | AB11: 92 | AC11: 36 | AD11: 4
A12: 1.2. | B12: ДИСЦИПЛИНЫ ОБЩИЕ | E12: 1 | F12: 3 | I12: =SUM(I13:I16) -> 180 | J12: =SUM(J13:J16) -> 180 | K12: =SUM(K13:K16) -> 62 | L12: 16 | N12: 34 | O12: =SUM(O13:O16) -> 106 | P12: 12 | Q12: 5 | R12: 108 | S12: 26 | T12: 3 | U12: =SUM(U13:U16) -> 4 | V12: 10 | W12: 58 | X12: 0 | Y12: 2 | Z12: 4 | AA12: 8 | AB12: 24 | AC12: 0 | AD12: 1 | AE12: 72 | AF12: 12 | AG12: 2 | AH12: =AJ12*36 -> 72 | AI12: =SUM(AI13:AI16) -> 36 | AJ12: =AO12+AT12 -> 2 | AK12: =SUM(AK14:AK16) -> 28 | AL12: 8 | AM12: 24 | AN12: 12 | AO12: 2 | AP12: 0 | AQ12: 0 | AR12: 0 | AS12: 0 | AT12: 0 | AU12: 108 | AV12: 12 | AW12: 3 | AX12: =SUM(AX13:AX16) -> 0 | AY12: 0 | AZ12: 0 | BA12: 0 | BB12: 0 | BC12: 0 | BD12: 0
A13: 1.2.1 | B13: Методология научных исследований | F13: 1 | I13: =Q13*36 -> 72 | J13: =SUM(K13:P13) -> 72 | K13: 14 | L13: 4 | N13: 10 | O13: =W13+AB13 -> 58 | Q13: =T13+AJ13+AZ13 -> 2 | R13: =T13*36 -> 72 | S13: 14 | T13: =Y13+AD13 -> 2 | U13: 4 | V13: 10 | W13: 58 | Y13: 2
A14: 1.2.2 | B14: Методика написания и правила оформления научной работы | F14: 2 | I14: =Q14*36 -> 36 | J14: =SUM(K14:P14) -> 36 | K14: 12 | L14: 4 | N14: 8 | O14: =W14+AB14 -> 24 | Q14: =T14+AJ14+AZ14 -> 1 | R14: =T14*36 -> 36 | S14: 12 | T14: =AD14 -> 1 | Z14: 4 | AA14: 8 | AB14: 24 | AD14: 1
A15: 1,2,3 | B15: Психология и педагогика профессиональной деятельности | F15: 3 | I15: =Q15*36 -> 36 | J15: =SUM(K15:P15) -> 36 | K15: 12 | L15: 4 | N15: 8 | O15: =AM15 -> 24 | Q15: =T15+AJ15+AZ15 -> 1 | R15: =T15*36 -> 0 | AE15: 72 | AF15: 12 | AG15: 2 | AH15: =AJ15*36 -> 36 | AI15: =AK15+AL15 -> 12 | AJ15: =AO15+AT15+AT15 -> 1 | AK15: 4 | AL15: 8 | AM15: 24 | AO15: 1 | AX15: =AZ15*36 -> 0 | AZ15: =BD15+BH15 -> 0
A16: 1.2.4 | B16: Искусственный интеллект в научных исследованиях. | E16: 3 | I16: =Q16*36 -> 36 | J16: =SUM(K16:P16) -> 36 | K16: =S16+AI16 -> 24 | L16: 4 | N16: 8 | O16: =AM16 ->  | P16: =AN16 -> 12 | Q16: =T16+AJ16+AZ16 -> 1 | R16: =T16*36 -> 0 | AH16: =AJ16*36 -> 36 | AI16: =AK16+AL16 -> 24 | AJ16: =AO16+AT16+AT16 -> 1 | AK16: 24 | AL16: 0 | AN16: 12 | AO16: 1 | AU16: 108 | AV16: 12 | AW16: 3
A17: 1.3. | B17: Вариативная часть. ДИСЦИПЛИНЫ специальности: Математическое моделирование, численные методы и комплексы программ | E17: 2 | F17: 3 | I17: =Q17*36 -> 468 | J17: =K17+O17+P17 -> 468 | K17: =K18+K19+K20+K21+K22 -> 74 | L17: 20 | N17: 48 | O17: =O18+O19+O20+O21+O22 -> 322 | P17: =SUM(P18:P22) -> 72 | Q17: 13 | R17: 216 | S17: 46 | T17: 6 | U17: 4 | V17: 10 | W17: 58 | X17: 0 | Y17: 2 | Z17: 22 | AA17: 10 | AB17: 76 | AC17: 36 | AD17: 4 | AE17: 144 | AF17: 14 | AG17: 4 | AH17: =SUM(AH18:AH22) -> 252 | AI17: =SUM(AI18:AI22) -> 28 | AJ17: =SUM(AJ18:AJ22) -> 7 | AK17: 4 | AL17: 10 | AM17: 94 | AN17: 36 | AO17: =SUM(AO18:AO22) -> 4 | AP17: 4 | AQ17: 10 | AR17: 94 | AS17: 0 | AT17: 3 | AU17: 108 | AV17: 14 | AW17: 3 | AX17: =SUM(AX18:AX22) -> 0 | AY17: 0 | AZ17: 0 | BA17: 0 | BB17: 0 | BC17: 0 | BD17: =SUM(BD18:BD22) -> 0
A18: 1.3.1 | B18: Элементы теории функций и функционального анализа | F18: 1 | I18: 72 | J18: 72 | K18: 14 | L18: 4 | N18: 10 | O18: 58 | Q18: =T18+AJ18+AZ18 -> 2 | R18: =T18*36 -> 72 | S18: =U18+V18+Z18+AA18 -> 14 | T18: =Y18+AD18 -> 2 | U18: 4 | V18: 10 | W18: 58 | Y18: 2
A19: 1.3.2 | B19: Методы ИИ для анализа нестационарных потоков данных | F19: 2 | I19: 72 | J19: 72 | K19: =S19 -> 18 | L19: 4 | N19: 8 | O19: =AB19 -> 54 | Q19: =T19+AJ19+AZ19 -> 2 | R19: =T19*36 -> 72 | S19: =U19+V19+Z19+AA19 -> 18 | T19: =Y19+AD19 -> 2 | Z19: 18 | AA19: 0 | AB19: 54 | AD19: 2
A20: 1.3.3 | B20: Методы исследования математических моделей | E20: 2 | I20: 72 | J20: 72 | K20: 14 | L20: 4 | N20: 10 | O20: 22 | P20: 36 | Q20: =T20+AJ20+AZ20 -> 2 | R20: =T20*36 -> 72 | S20: =U20+V20+Z20+AA20 -> 14 | T20: =Y20+AD20 -> 2 | Z20: 4 | AA20: 10 | AB20: 22 | AC20: 36 | AD20: 2
A21: 1.3.4 | B21: Численные методы | F21: 4 | I21: 108 | J21: 108 | K21: 14 | L21: 4 | N21: 10 | O21: 94 | Q21: =T21+AJ21+AZ21 -> 3 | R21: =T21*36 -> 0 | S21: =U21+V21+Z21+AA21 -> 0 | T21: =Y21+AD21 -> 0 | AH21: =AJ21*36 -> 108 | AI21: =AQ21+AP21+AL21+AK21 -> 14 | AJ21: =AO21+AT21 -> 3 | AP21: 4 | AQ21: 10 | AR21: 94 | AT21: 3 | AU21: 108 | AV21: 14 | AW21: 3 | AX21: =AZ21*36 -> 0 | AY21: =BA21+BB21 -> 0 | AZ21: =BD21+BH21 -> 0 | BA21: 0 | BB21: 0 | BC21: 0 | BD21: 0
A22: 1.3.5 | B22: Вычислительный эксперимент | E22: 3 | I22: 144 | J22: 144 | K22: 14 | L22: 4 | N22: 10 | O22: 94 | P22: 36 | Q22: =T22+AJ22+AZ22 -> 4 | R22: =T22*36 -> 0 | S22: =U22+V22+Z22+AA22 -> 0 | T22: =Y22+AD22 -> 0 | AE22: 144 | AF22: 14 | AG22: 4 | AH22: =AJ22*36 -> 144 | AI22: =AK22+AL22 -> 14 | AJ22: =AO22+AT22 -> 4 | AK22: 4 | AL22: 10 | AM22: 94 | AN22: 36 | AO22: 4
B23: Наименование | I23: Всего часов | R23: Всего | U23: Семестр 1 | Z23: Семестр 2 | AE23: Всего | AH23: Всего | AK23: Семестр 3 | AP23: Семестр 4 | AU23: Всего | AX23: Всего | BA23: Семестр 5 | BE23: Семестр 6
I24: По ЗЕТ | J24: По плану | K24: Контакт.р. | O24: СР | Q24: Факт | R24: Часов | T24: ЗЕТ | U24: часов | W24: СРС | Y24: ЗЕТ | Z24: часов | AB24: СРС | AD24: ЗЕТ | AE24: часов | AG24: ЗЕТ | AH24: часов | AJ24: ЗЕТ | AK24: часов | AM24: СРС | AO24: ЗЕТ | AP24: часов | AR24: СРС | AT24: ЗЕТ | AU24: часов | AW24: ЗЕТ | AX24: часов | AZ24: ЗЕТ | BA24: часов | BC24: СРС | BD24: ЗЕТ | BE24: часов | BG24: СРС | BH24: ЗЕТ
A25: 1.4 | B25: Практики | G25: 1 | I25: =Q25*36 -> 108 | J25: =J26 -> 108 | K25: =K26 -> 18 | O25: =O26 -> 90 | Q25: =Q26 -> 3 | AH25: =AJ25*36 -> 108 | AJ25: =AJ26 -> 3 | AP25: =SUM(AP26) -> 108 | AR25: =AR26 -> 90 | AT25: =AT26 -> 3
A26: 1.4.1 | B26: Научно-педагогическая практика | G26: 4 | I26: =Q26*36 -> 108 | J26: =R26+AH26+AX26 -> 108 | K26: =I26-O26 -> 18 | O26: =AR26 -> 90 | Q26: =T26+AJ26+AZ26 -> 3 | AH26: 108 | AJ26: =AO26+AT26 -> 3 | AP26: =AT26*36 -> 108 | AR26: 90 | AT26: 3 | AU26: 108 | AW26: 3
A27: 2 | B27: Научные исследования | G27: 6 | I27: =Q27*36 -> 5220 | J27: =J28+J29 -> 5220 | K27: =50*3 -> 150 | O27: =W27+AB27+AM27+AR27+BC27+BG27 -> 5,070 | Q27: =T27+AJ27+AZ27 -> 145 | R27: 1,512 | T27: =Y27+AD27 -> 42 | U27: =Y27*36 -> 702 | W27: =U27-20 -> 682 | Y27: 19.5 | Z27: =AD27*36 -> 810 | AB27: =Z27-30 -> 780 | AD27: =AD28+AD29 -> 22.5 | AE27: 1,944 | AG27: 54 | AH27: 1728 | AJ27: =AO27+AT27 -> 48 | AK27: =AO27*36 -> 684 | AM27: =AK27-20 -> 664 | AO27: =AO28+AO29 -> 19.0 | AP27: =AT27*36 -> 1,044 | AR27: =AP27-30 -> 1,014 | AT27: =AT28+AT29 -> 29 | AU27: 1,620 | AW27: 45 | AX27: =AZ27*36 -> 1980 | AZ27: =BD27+BH27 -> 55 | BA27: =BD27*36 -> 918 | BC27: =BA27-20 -> 898 | BD27: =BD28+BD29 -> 25.5 | BE27: =BH27*36 -> 1,062 | BG27: =BE27-30 -> 1,032 | BH27: =BH28+BH29 -> 29.5
A28: 2.1 | B28: Научно-исследовательская работа аспиранта, направленная на подготовку диссертациии на соискание ученой степени кандидата наук к защите | G28: 1-6 | I28: =Q28*36 -> 4860 | J28: =I28 -> 4860 | Q28: =T28+AJ28+AZ28 -> 135 | R28: 1,080 | T28: =Y28+AD28 -> 39 | U28: =Y28*36 -> 666 | W28: =Y28*36 -> 666 | Y28: 18.5 | Z28: =AD28*36 -> 738 | AB28: =Z28-30 -> 708 | AD28: 20.5 | AE28: 1,296 | AG28: 36 | AH28: 1 584 | AJ28: =AO28+AT28 -> 44 | AK28: =AO28*36 -> 612 | AM28: =AK28-20 -> 592 | AO28: 17.0 | AP28: =AT28*36 -> 972 | AR28: =AP28-30 -> 942 | AT28: 27.0 | AU28: 1,296 | AW28: 36 | AX28: =AZ28*36 -> 1 872 | AZ28: =BD28+BH28 -> 52 | BA28: =BD28*36 -> 846 | BD28: 23.50 | BE28: =BH28*36 -> 1,026 | BH28: 28.5
A29: 2.2 | B29: Подготовка публикаций и (или) заявок на патенты на изобретения | G29: 1-6 | I29: =Q29*36 -> 360 | J29: =I29 -> 360 | Q29: =T29+AJ29+AZ29 -> 10 | R29: 432 | T29: =Y29+AD29 -> 3 | U29: =Y29*36 -> 36 | W29: =U29 -> 36 | Y29: 1.0 | Z29: =AD29*36 -> 72 | AB29: =Z29 -> 72 | AD29: 2.0 | AE29: 648 | AG29: 18 | AH29: 144 | AJ29: =AO29+AT29 -> 4 | AK29: =AO29*36 -> 72 | AM29: = | AO29: 2.0 | AP29: =AT29*36 -> 72 | AR29: = | AT29: 2.0 | AU29: 324 | AW29: 9 | AX29: =AZ29*36 -> 108 | AZ29: =BD29+BH29 -> 3 | BA29: =BD29*36 -> 72 | BD29: 2.00 | BE29: =BH29*36 -> 36 | BH29: 1.0
A30: 3 | B30: Итоговая аттестация | I30: =J30 -> 180 | J30: =Q30*36 -> 180 | K30: 36 | O30: 144 | Q30: 5 | AH30: 0 | AX30: =AZ30*36 -> 180 | AZ30: =BD30+BH30 -> 5 | BE30: =BH30*36 -> 180 | BH30: 5

Sheet Start (hidden)
